Cogmind - Beta 10.2 *** ADVENTURER MODE // 2021.05.20 @ 22:20:45 Player: PerrySimm Result: Core destroyed Performance ------------- Evolutions (0) 0 Regions Visited (4) 800 Robots Destroyed (7) 35 Value Destroyed (107) 107 Prototype IDs (3) 60 Alien Tech Used (0) 0 Bonus (300) 300 TOTAL SCORE: 1302 Bonus ------- Aligned with FarCom 300 Cogmind --------- Core Integrity 0/250 Matter 300/300 Energy 100/100 System Corruption 6% Temperature Cool (0) Movement Walking (150) Ox1 Location -9/Mines Parts ------- > --- POWER (1) -------- (None) > --- PROPULSION (2) --- Aluminum Leg > --- UTILITY (2) ------ Small Storage Unit > --- WEAPON (2) ------- Slug Cannon > --- INVENTORY (6) ---- Aluminum Leg Signal Interpreter Mining Laser Peak State ------------ > --- POWER ------------ Ion Engine > --- PROPULSION ------- Wheel Wheel > --- UTILITY ---------- Small Storage Unit PSU Rigger > --- WEAPON ----------- Particle Gun Slug Cannon > --- INVENTORY -------- Light Ion Engine Light Ion Engine Aluminum Leg Aluminum Leg Signal Interpreter Mining Laser [Rating: 18] Favorites ----------- Power Ion Engine Engine Ion Engine Propulsion Wheel Leg Aluminum Leg Wheel Wheel Utility Small Storage Unit Device Improved Heat Sink Storage Small Storage Unit Weapon Slug Cannon Energy Gun Particle Gun Ballistic Gun Assault Rifle Ballistic Cannon Slug Cannon Build | -11 -10 -10 -10 -9 ------- Run | Scr Mat Min Exi Min Slots Evolved . | . . . . . Power . | . . . . . Propulsion . | . . . . . Utility . | . . . . . Weapon . | . . . . . Parts Attached 13 | 5 1 3 1 3 Power 3 | 1 . . . 2 Engine 3 | 1 . . . 2 Core . | . . . . . Reactor . | . . . . . Propulsion 3 | 2 . . . 1 Treads . | . . . . . Leg 1 | . . . . 1 Wheel 2 | 2 . . . . Hover . | . . . . . Flight . | . . . . . Utility 3 | 1 . 1 1 . Device 2 | . . 1 1 . Storage 1 | 1 . . . . Processor . | . . . . . Hackware . | . . . . . Protection . | . . . . . Artifact . | . . . . . Weapon 4 | 1 1 2 . . Energy Gun 1 | . . 1 . . Energy Cannon . | . . . . . Ballistic Gun 2 | 1 1 . . . Ballistic Cannon 1 | . . 1 . . Launcher . | . . . . . Special Weapon . | . . . . . Impact Weapon . | . . . . . Slashing Weapon . | . . . . . Piercing Weapon . | . . . . . Special Melee Weapon . | . . . . . Unidentified Prototypes 1 | . . . 1 . Parts Lost 6 | . . . . 6 Power 3 | . . . . 3 Propulsion 2 | . . . . 2 Utility . | . . . . . Weapon 1 | . . . . 1 Highest Loss Streak 6 | . . . . 6 Average Slot Usage (%) 86 | . 82 96 88 67 Engine 13 | . 14 14 14 8 Wheel 27 | . 28 28 28 17 Device 3 | . . 10 3 . Storage 14 | . 14 14 14 14 Energy Gun 10 | . . 10 14 8 Ballistic Gun 6 | . 25 6 . . Ballistic Cannon 10 | . . 11 14 14 Naked Turns . | . . . . . Heaviest Build 20 | 11 12 20 20 19 Greatest Support 20 | 20 20 20 20 20 Greatest Overweight (x) 3 | 3 . . . . Average Overweight (x) . | . . . . . Largest Inventory Capacity 6 | 6 6 6 6 6 Average Capacity 5 | 5 6 6 6 6 Most Carried 6 | 4 6 6 6 6 Average Carried 5 | 2 5 6 5 5 Final Capacity 6 | 6 6 6 6 6 Final Carried 6 | 4 6 6 6 3 Class Distribution -------------------- 100% | Mutant Dominant Class ---------------- Mutant | -10/Materials Mutant | -10/Mines Mutant | -10/Exiles Mutant | -9/Mines Resources | -11 -10 -10 -10 -9 ----------- Run | Scr Mat Min Exi Min Matter Collected 356 | 244 44 50 . 18 Remotely . | . . . . . Salvage Created 144 | . 61 83 . . Parts 16 | . 9 7 . . Haulers Intercepted . | . . . . . Recyclers Shooed . | . . . . . Parts Field Recycled . | . . . . . Retrieved Matter . | . . . . . Parts Self-Destructed . | . . . . . Prevented . | . . . . . Kills | -11 -10 -10 -10 -9 ------- Run | Scr Mat Min Exi Min Combat Hostiles Destroyed 7 | . 4 3 . . Guns 7 | . 4 3 . . Classes Destroyed 2 | . 1 1 . . Swarmer 6 | . 4 2 . . Grunt 1 | . . 1 . . Best Kill Streak 3 | . 3 3 . . Combat Bots Only 3 | . 3 3 . . Max Kills in Single Turn 2 | . 2 1 . . Gunslinging 1 | . 1 . . . Exploded . | . . . . . Melee . | . . . . . Uniques/NPCs Destroyed . | . . . . . Combat | -11 -10 -10 -10 -9 -------- Run | Scr Mat Min Exi Min Damage Taken 878 | . 130 32 . 716 Core 254 | . 34 . . 220 Absorbed by Shields . | . . . . . Core Remaining (%) 100 | 100 . . . . Volleys Fired 14 | . 7 5 . 2 Largest 2 | . 2 2 . 2 Hottest 113 | . 40 40 . 113 Shots Fired 28 | . 14 10 . 4 Gun 26 | . 14 10 . 2 Cannon 2 | . . . . 2 Launcher . | . . . . . Special . | . . . . . Kinetic 26 | . 14 10 . 2 Thermal 2 | . . . . 2 Explosive . | . . . . . Electromagnetic . | . . . . . Robot Hit Streak 11 | . 9 11 . 6 Robot Miss Streak 2 | . 1 2 . . Penetration Max . | . . . . . Secondary Targets 4 | . 3 1 . . Max Gunslinging Chain 1 | . 1 1 . . Shots Hit Robots 20 | . 11 5 . 4 Core Hits 15 | . 5 5 . 5 Critical Hits . | . . . . . Critical Kills . | . . . . . Critical Parts Destroyed . | . . . . . Melee Attacks . | . . . . . Impact . | . . . . . Slashing . | . . . . . Piercing . | . . . . . Sneak Attacks . | . . . . . Combat Hostiles . | . . . . . Follow-up Attacks . | . . . . . Damage Inflicted 274 | . 84 49 . 141 Guns 167 | . 84 49 . 34 Cannons 75 | . . . . 75 Explosions . | . . . . . Melee . | . . . . . Ramming 32 | . . . . 32 Kinetic 208 | . 84 49 . 75 Thermal 34 | . . . . 34 Explosive . | . . . . . Electromagnetic . | . . . . . Impact . | . . . . . Slashing . | . . . . . Piercing . | . . . . . Highest Corruption 6 | . . . . 6 Average Corruption 4 | . . . . 4 Corruption Purged . | . . . . . Effects 1 | . . . . 1 Data Loss (minor) 1 | . . . . 1 Overload Shots . | . . . . . Overflow Damage 5 | . . . . 5 Projectiles 5 | . . . . 5 Explosions . | . . . . . Melee . | . . . . . Knockbacks 2 | . . . . 2 Impact . | . . . . . Kinetic 1 | . . . . 1 Secondary 1 | . . . . 1 Self-Inflicted Damage 11 | . . . . 11 Shots . | . . . . . Rammed 16 | . . . . 16 Targets Rammed 18 | . . . . 18 Kicked 2 | . . . . 2 Crushed . | . . . . . Highest Temperature 102 | . . . . 102 Average Temperature 51 | . . . . 51 Received Heat Transfer 102 | . . 12 . 90 Siege Activations . | . . . . . Robots Corrupted . | . . . . . Combat Hostiles . | . . . . . Parts Fried . | . . . . . Impact Corruptions . | . . . . . Robots Melted . | . . . . . Combat Hostiles . | . . . . . Parts Melted . | . . . . . Heat Transferred 74 | . . . . 74 Parts Sabotaged . | . . . . . Parts Stolen . | . . . . . Parts Stripped . | . . . . . Power Chain Reactions . | . . . . . Missiles Intercepted . | . . . . . Alert | -11 -10 -10 -10 -9 ------- Run | Scr Mat Min Exi Min Peak Influence 111 | . 98 111 . . Initial 31 | . . 31 . . Average 54 | . 56 104 . . Maximum Alert Level . | . . . . . Low Security (%) 100 | 100 100 100 . 100 Level 1 . | . . . . . Level 2 . | . . . . . Level 3 . | . . . . . Level 4 . | . . . . . Level 5 . | . . . . . High Security . | . . . . . Max Security . | . . . . . Squads Dispatched . | . . . . . Investigation . | . . . . . Extermination . | . . . . . Reinforcement . | . . . . . Assault . | . . . . . Garrison . | . . . . . Intercept . | . . . . . Construction Impeded . | . . . . . Haulers Reinforced . | . . . . . Stealth | -11 -10 -10 -10 -9 --------- Run | Scr Mat Min Exi Min Distress Signals 1 | . 1 . . . Communications Jammed . | . . . . . Distress Signals . | . . . . . Times Spotted 34 | . 7 4 . 23 Peak Tracking Total 21 | . 4 3 . 21 Tactical Retreats . | . . . . . Traps | -11 -10 -10 -10 -9 ------- Run | Scr Mat Min Exi Min Traps Triggered . | . . . . . Indirectly . | . . . . . Trap Hack Attempts . | . . . . . Triggered . | . . . . . Disarmed . | . . . . . Reprogrammed . | . . . . . Reused . | . . . . . Traps Extracted . | . . . . . Installed . | . . . . . Triggered . | . . . . . Machines | -11 -10 -10 -10 -9 ---------- Run | Scr Mat Min Exi Min Machines Disabled . | . . . . . Max in Single Turn . | . . . . . Machines Sabotaged . | . . . . . Garrisons Compromised . | . . . . . Overloaded Fab Kills . | . . . . . Fab Network Shutdowns . | . . . . . Hacking | -11 -10 -10 -10 -9 --------- Run | Scr Mat Min Exi Min Machines Accessed 5 | . 3 . 2 . Terminals 3 | . 3 . . . Fabricators . | . . . . . Repair Stations . | . . . . . Recycling Units . | . . . . . Scanalyzers . | . . . . . Garrison Access . | . . . . . Total Hacks 10 | . 8 . 2 . Successful 4 | . 2 . 2 . Failed 6 | . 6 . . . Catastrophic 1 | . 1 . . . Database Lockouts . | . . . . . Manual 7 | . 6 . 1 . Terminals 8 | . 8 . . . Fabricators . | . . . . . Repair Stations . | . . . . . Recycling Units . | . . . . . Scanalyzers . | . . . . . Garrison Access . | . . . . . Terminal Hacks 4 | . 2 . 2 . Record 2 | . . . 2 . Prototype ID Bank 1 | . 1 . . . Level Access Points 1 | . 1 . . . Fabricator Hacks . | . . . . . Repair Station Hacks . | . . . . . Recycling Unit Hacks . | . . . . . Scanalyzer . | . . . . . Garrison Access Hacks . | . . . . . Unauthorized Hacks . | . . . . . Terminals . | . . . . . Fabricators . | . . . . . Repair Stations . | . . . . . Recycling Units . | . . . . . Scanalyzers . | . . . . . Garrison Access . | . . . . . Data Cores Recovered . | . . . . . Used . | . . . . . Hacking Detections 3 | . 3 . . . Full Trace Events . | . . . . . Feedback Events . | . . . . . Feedback Blocked . | . . . . . Robot Schematics Acquired . | . . . . . Robots Built . | . . . . . Matter . | . . . . . Time . | . . . . . Total Robot Build Rating . | . . . . . Part Schematics Acquired . | . . . . . Parts Built . | . . . . . Matter . | . . . . . Time . | . . . . . Total Part Build Rating . | . . . . . Parts Repaired . | . . . . . Time . | . . . . . Parts Recycled . | . . . . . Recycled Matter . | . . . . . Retrieved Matter . | . . . . . Retrieved Components . | . . . . . Parts Scanalyzed . | . . . . . Part Schematics Acquired . | . . . . . Parts Damaged . | . . . . . Bothacking | -11 -10 -10 -10 -9 ------------ Run | Scr Mat Min Exi Min Used RIF Installer . | . . . . . Robots Hacked . | . . . . . Non-combat . | . . . . . Combat . | . . . . . Robot Hacks Applied . | . . . . . Relay Couplers Released . | . . . . . Robots Rewired . | . . . . . Allies Hacked . | . . . . . Hacks Repelled . | . . . . . Allies | -11 -10 -10 -10 -9 -------- Run | Scr Mat Min Exi Min Total Allies . | . . . . . Largest Group . | . . . . . Highest-Rated Group . | . . . . . Highest-Rated Ally . | . . . . . Total Orders . | . . . . . Ally Attacks . | . . . . . Total Damage . | . . . . . Kills . | . . . . . Allies Corrupted . | . . . . . Allies Melted . | . . . . . Intel | -11 -10 -10 -10 -9 ------- Run | Scr Mat Min Exi Min Robot Analysis Total . | . . . . . Derelict Logs Recovered 2 | . . 1 . 1 Drone Launches . | . . . . . Drone Recoveries . | . . . . . Exploration | -11 -10 -10 -10 -9 ------------- Run | Scr Mat Min Exi Min Turns Passed 930 | 68 165 146 475 76 Spaces Moved 967 | 48 133 143 589 54 Core 12 | 12 . . . . Treads . | . . . . . Legs . | . . . . . Wheels 955 | 36 133 143 589 54 Hover . | . . . . . Flight . | . . . . . Fastest Speed 50 | 50 80 80 80 80 Average Speed 80 | 95 80 80 80 80 Slowest Speed 200 | 200 80 80 80 80 Overloaded Moves . | . . . . . Propulsion Burnouts . | . . . . . Robots Hopped . | . . . . . Cave-ins Triggered . | . . . . . Exploration Rate (%) 37 | 3 26 52 89 16 Regions Visited 4 Branch Regions 3 Pre-discovered Areas 2 | . . 1 . 1 Known Exits Taken . | . . . . . Unknown Exits Taken 4 | 1 1 1 1 . Scrap Searched . | . . . . . Spaces Dug . | . . . . . Terrain Destroyed . | . . . . . Melee . | . . . . . Projectile . | . . . . . AOE . | . . . . . Terrain Rammed . | . . . . . Walls Destroyed . | . . . . . Machines Disabled . | . . . . . Actions | -11 -10 -10 -10 -9 --------- Run | Scr Mat Min Exi Min Total 1078 | 67 178 164 593 76 Wait 58 | 11 35 12 . . Move 963 | 47 132 142 588 54 Hop . | . . . . . Pick Up 8 | 4 3 . 1 . Fast Attach 9 | 5 . 3 1 . Attach 4 | . 1 . . 3 Detach . | . . . . . Swap . | . . . . . Drop 5 | . . 2 3 . Fire 14 | . 7 5 . 2 Melee . | . . . . . Ram 5 | . . . . 5 Kick 12 | . . . . 12 Crush . | . . . . . Escape Stasis . | . . . . . Rewire . | . . . . . Trap . | . . . . . Miscellaneous . | . . . . . Route ------- -11/Scrapyard -10/Materials (discovered 4 exits: Mat x3 / [*Min]) -10/Mines -10/Exiles -9/Mines History --------- Turn | Location | Event 29 | -11/Scrapyard | Discovered new exit (range 16) 69 | -11/Scrapyard | Entered Materials 79 | -10/Materials | Identified exit to Materials 141 | -10/Materials | Met 8R-AWN 228 | -10/Materials | Discovered new exit (range 8) 234 | -10/Materials | Entered Mines 235 | -10/Mines | Followed 8R-AWN into the Mines 265 | -10/Mines | A weapon hastily lodged in a ceiling crevice suddenly fell to the ground 272 | -10/Mines | Met a Derelict bent on vengeance 317 | -10/Mines | Build established: Mutant 375 | -10/Mines | Discovered new exit (range 5) 380 | -10/Mines | Entered Exiles 402 | -10/Exiles | Welcomed by 8R-AWN 416 | -10/Exiles | Met EX-HEX 449 | -10/Exiles | Met EX-BIN 465 | -10/Exiles | Aligned with FarCom system 465 | -10/Exiles | Given EX-Vault access code 501 | -10/Exiles | Opened EX-Vault 510 | -10/Exiles | Found Prototype Device 510 | -10/Exiles | Identified PSU Rigger 532 | -10/Exiles | Warned to stay clear of 0b10 Research branches 558 | -10/Exiles | Met EX-DEC 586 | -10/Exiles | Visited The Gauntlet 845 | -10/Exiles | Discovered new exit (range 14) 855 | -10/Exiles | Entered Mines 867 | -9/Mines | Learned location of Storage (-7) 887 | -9/Mines | Assembled infested the area 892 | -9/Mines | Assisted by a Guerilla fighting off Assembled 915 | -9/Mines | Core integrity fell below 50% 926 | -9/Mines | Core integrity fell below 20% 931 | -9/Mines | Core destroyed Last Messages --------------- as-33281 sneak attacks. U-05 Engineer system corrupted by crushing effect. U-05 Engineer knocked back. U-05 Engineer system terminally corrupted. Acquired 2 matter. Slammed into as-71743. Acquired 1 matter. Lgt. Ion Engine destroyed. Slammed into as-64037. as-33281 destroyed. as-08859 destroyed. as-63824 destroyed. as-44339 destroyed. as-44550 destroyed. as-03218 destroyed. Slammed into as-64037. The unstable cave ceiling collapses. G-34 Mercenary knocked back. Slammed into as-24326. Destabilizing: Core damaged (-7). Map ----- +----------------------------------------------------+ | ?????????????????????? ?????# ##### #????? #?? | | ?????????????????????? ??### ###?# ##???? #?? | | ???????????????????????# ## ### ##### #?? | | ????????????????????????# #?? | | ???????????????????????????# #?? | | ???????????????????????????## #######?? | | ????????????????????????????##### ####???????? | | ????????????????????????????????## ##??????????? | | ????????????????????????###??????# ###???????????? | | ?????????????????????#### ######## #?????????????? | | ????????????????????## !%% #?????????????? | | ?????????????######### r% [%=g #?????????????? | | ?????????? d !########?????????????? | | ?????????????#########d #????????????????????? | | ????????????????????## %! #????????????????????? | | ????????????????????# ] % #????????????????????? | | ????????????????????###% a #????????????????????? | | ??????????????????????# # ????????????????????? | | ??????????????????????## #????????????????????? | | ???????????????????????? ?????????????????????? | | ???????????????????????? % #?????????????????????? | | ???????????????????????? a ??????????????????????? | | ????????????????????????#a ??????????????????????? | | ????????????????????????#a### ####???????????????? | | ????????????????????????#aa #??????????????? | | ????????????????????????#@####### #??????????????? | | ????????????????????????#a#??????????????????????? | | ????????????????????????a #??????????????????????? | | ???????????????????????? #??????????????????????? | | ??????????????????????? ##??????????????????????? | | ??????????????????????? #????????????????????????? | | ?????????????????????? ?????????????????????????? | | ?????????????????????? #?????????????????????????? | | ?????????????????????##??????????????????????????? | | ?????????????????????????????????????????????????? | | ?????????????????????????????????????????????????? | | ?????????????????????????????????????????????????? | | ?????????????????????????????????????????????????? | | ?????????????????????????????????????????????????? | | ?????????????????????????????????????????????????? | | ?????????????????????????????????????????????????? | | ?????????????????????????????????????????????????? | | ?????????????????????????????????????????????????? | | ?????????????????????????????????????????????????? | | ?????????????????????????????????????????????????? | | ?????????????????????????????????????????????????? | | ?????????????????????????????????????????????????? | | ?????????????????????????????????????????????????? | | ?????????????????????????????????????????????????? | | ?????????????????????????????????????????????????? | +----------------------------------------------------+ Best States ------------- Heat Dissipation 25 Energy Generation 10 Energy Capacity 250 Matter Stores 300 Matter Capacity 300 Sight Range 16 Terrain Scan Density 10 Resistance: KI 20 Resistance: TH 20 Resistance: EX 20 Resistance: EM 20 Resistance: I 20 Resistance: S 20 Resistance: P 20 Evasion (%) 44 Offensive Hacking 10 Item Schematics ----------------- None Robot Schematics ------------------ None Fabricated ------------ Nothing Alien Tech Used ----------------- None Achievements -------------- None Challenges ------------ None Game ------ Seed AssemblyCoreTerminator Manual? 0 Play Time 00:25:54 Cumulative 54.0 hours Start 2021.02.10 @ 21:08:15 End 2021.05.20 @ 22:20:45 Sessions 3 Manual Loads 0 Difficulty Adventurer Special Mode None Game No. 46 Rogue 3 Adventurer 41 Explorer 2 Win Type - Total 1 Types 1/0/0/0/0/0/0/0/0 Lore% 33 Gallery% 41 Achievement% 30 Wizard Run 0 Options --------- ASCII 1 Keyboard 0 Movement Mouse Keybinds 0 Fullscreen 2 Font 18/X11Bold Map View 76x50 Tactical HUD 0 Map Filters NONE Filters NONE Steam 1 RUN: b30e9da5-66f6-4282-adda-da0e9374ec7b